[Event "Titled Tuesday Blitz July 25 Early 2023"]
[White "Jahnz, Fabian"]
[Black "djjohnnywoo"]
[WhiteFideId "4653300"]
[WhiteElo "2071"]
[BlackElo "2133"]
[Result "1-0"]
[Round "11"]
[TimeControl "180+2"]
[Date "2023.07.25"]
[WhiteClock "0:01:22"]
[BlackClock "0:00:17"]
[Board "156"]

1. e4 {[%clk 0:03:00]}  c5 {[%clk 0:02:58]} 2. Nf3 {[%clk 0:03:00]}  g6 {[%clk 0:02:56]} 3. d4 {[%clk 0:03:00]}  cxd4 {[%clk 0:02:52]} 4. Nxd4 {[%clk 0:03:01]}  Bg7 {[%clk 0:02:50]} 5. Be3 {[%clk 0:03:01]}  Nc6 {[%clk 0:02:50]} 6. c4 {[%clk 0:02:58]}  d6 {[%clk 0:02:48]} 7. Nc3 {[%clk 0:02:57]}  Nf6 {[%clk 0:02:48]} 8. Be2 {[%clk 0:02:57]}  O-O {[%clk 0:02:47]} 9. O-O {[%clk 0:02:57]}  Nxd4 {[%clk 0:02:43]} 10. Bxd4 {[%clk 0:02:57]}  Be6 {[%clk 0:02:44]} 11. Rc1 {[%clk 0:02:55]}  Nd7 {[%clk 0:02:43]} 12. Bxg7 {[%clk 0:02:54]}  Kxg7 {[%clk 0:02:42]} 13. Nd5 {[%clk 0:02:51]}  Bxd5 {[%clk 0:02:29]} 14. cxd5 {[%clk 0:02:51]}  Qb6 {[%clk 0:02:27]} 15. Qd2 {[%clk 0:02:44]}  Rac8 {[%clk 0:02:19]} 16. Rc3 {[%clk 0:02:41]}  Rxc3 {[%clk 0:02:01]} 17. Qxc3+ {[%clk 0:02:42]}  Kg8 {[%clk 0:02:00]} 18. h4 {[%clk 0:02:37]}  Nf6 {[%clk 0:01:53]} 19. Bd3 {[%clk 0:02:23]}  h5 {[%clk 0:01:37]} 20. b4 {[%clk 0:02:16]}  Ng4 {[%clk 0:01:35]} 21. a4 {[%clk 0:02:11]}  a6 {[%clk 0:01:17]} 22. Be2 {[%clk 0:02:05]}  Ne5 {[%clk 0:01:13]} 23. Kh2 {[%clk 0:01:51]}  Qa7 {[%clk 0:01:13]} 24. f4 {[%clk 0:01:50]}  Ng4+ {[%clk 0:01:06]} 25. Bxg4 {[%clk 0:01:49]}  hxg4 {[%clk 0:01:06]} 26. Kg3 {[%clk 0:01:44]}  f5 {[%clk 0:00:51]} 27. h5 {[%clk 0:01:40]}  gxh5 {[%clk 0:00:36]} 28. Rh1 {[%clk 0:01:40]}  Rf6 {[%clk 0:00:24]} 29. Rxh5 {[%clk 0:01:37]}  Qg1 {[%clk 0:00:22]} 30. Qc8+ {[%clk 0:01:25]}  Kf7 {[%clk 0:00:18]} 31. Rh7+ {[%clk 0:01:22]}  Kg6 {[%clk 0:00:17]} 32. Qg8# {[%clk 0:01:22]} 1-0


[Site "https://www.chess.com"]

[Event "Titled Tuesday Blitz July 25 Early 2023"]
[White "Lohani, Sujana"]
[Black "Guevara Sanchez, Erick Marvin"]
[WhiteFideId "12311987"]
[BlackFideId "6700136"]
[WhiteElo "1937"]
[BlackElo "2075"]
[Result "0-1"]
[Round "11"]
[TimeControl "180+2"]
[Date "2023.07.25"]
[WhiteClock "0:00:41"]
[BlackClock "0:01:00"]
[Board "159"]

1. d4 {[%clk 0:03:00]}  d5 {[%clk 0:02:59]} 2. Nf3 {[%clk 0:03:01]}  e6 {[%clk 0:02:57]} 3. c4 {[%clk 0:03:02]}  c5 {[%clk 0:02:56]} 4. cxd5 {[%clk 0:03:00]}  exd5 {[%clk 0:02:57]} 5. Nc3 {[%clk 0:02:59]}  Nc6 {[%clk 0:02:57]} 6. e3 {[%clk 0:02:47]}  Nf6 {[%clk 0:02:55]} 7. dxc5 {[%clk 0:02:45]}  Bxc5 {[%clk 0:02:54]} 8. Bb5 {[%clk 0:02:45]}  O-O {[%clk 0:02:51]} 9. O-O {[%clk 0:02:45]}  Bg4 {[%clk 0:02:48]} 10. Be2 {[%clk 0:02:42]}  a6 {[%clk 0:02:38]} 11. a3 {[%clk 0:02:39]}  Rc8 {[%clk 0:02:37]} 12. Qb3 {[%clk 0:02:38]}  Na5 {[%clk 0:02:22]} 13. Qa2 {[%clk 0:02:35]}  Be6 {[%clk 0:02:18]} 14. Nd4 {[%clk 0:02:31]}  Bxd4 {[%clk 0:02:13]} 15. exd4 {[%clk 0:02:30]}  Nc4 {[%clk 0:02:10]} 16. Bg5 {[%clk 0:02:30]}  h6 {[%clk 0:02:09]} 17. Bh4 {[%clk 0:02:25]}  b5 {[%clk 0:01:58]} 18. Rad1 {[%clk 0:02:23]}  g5 {[%clk 0:01:48]} 19. Bg3 {[%clk 0:02:18]}  Ne4 {[%clk 0:01:47]} 20. Nxe4 {[%clk 0:02:15]}  dxe4 {[%clk 0:01:47]} 21. Qb1 {[%clk 0:02:12]}  Bd5 {[%clk 0:01:42]} 22. h4 {[%clk 0:02:07]}  f5 {[%clk 0:01:34]} 23. hxg5 {[%clk 0:01:58]}  hxg5 {[%clk 0:01:35]} 24. Rc1 {[%clk 0:01:08]}  f4 {[%clk 0:01:15]} 25. Bh2 {[%clk 0:01:04]}  Nd2 {[%clk 0:01:13]} 26. Rxc8 {[%clk 0:00:57]}  Qxc8 {[%clk 0:01:11]} 27. Qd1 {[%clk 0:00:57]}  Nxf1 {[%clk 0:01:07]} 28. Qxf1 {[%clk 0:00:41]}  Qc2 {[%clk 0:01:00]} 0-1


[Site "https://www.chess.com"]

[Event "Titled Tuesday Blitz July 25 Early 2023"]
[White "Vafin, Ayrat"]
[Black "Wisniowski, Natalie"]
[WhiteFideId "4146530"]
[BlackFideId "30929261"]
[WhiteElo "2288"]
[BlackElo "2015"]
[Result "0-1"]
[Round "11"]
[TimeControl "180+2"]
[Date "2023.07.25"]
[WhiteClock "0:01:47"]
[BlackClock "0:01:48"]
[Board "160"]

1. d4 {[%clk 0:03:00]}  Nf6 {[%clk 0:02:52]} 2. Bf4 {[%clk 0:03:00]}  d5 {[%clk 0:02:48]} 3. e3 {[%clk 0:03:00]}  c5 {[%clk 0:02:45]} 4. c3 {[%clk 0:02:59]}  Nc6 {[%clk 0:02:44]} 5. Nd2 {[%clk 0:02:57]}  Qb6 {[%clk 0:02:42]} 6. Qc2 {[%clk 0:02:53]}  Bg4 {[%clk 0:02:35]} 7. h3 {[%clk 0:02:46]}  Bh5 {[%clk 0:02:33]} 8. Bd3 {[%clk 0:02:45]}  e6 {[%clk 0:02:32]} 9. Rb1 {[%clk 0:02:39]}  Be7 {[%clk 0:02:31]} 10. Ngf3 {[%clk 0:02:30]}  O-O {[%clk 0:02:26]} 11. Ne5 {[%clk 0:02:21]}  Rac8 {[%clk 0:02:15]} 12. O-O {[%clk 0:02:18]}  cxd4 {[%clk 0:02:05]} 13. exd4 {[%clk 0:02:11]}  Nxd4 {[%clk 0:02:00]} 14. Bg5 {[%clk 0:01:51]}  Nxc2 {[%clk 0:01:54]} 15. Nd7 {[%clk 0:01:49]}  Nxd7 {[%clk 0:01:50]} 16. Bxc2 {[%clk 0:01:47]}  Bxg5 {[%clk 0:01:48]} 0-1


[Site "https://www.chess.com"]

[Event "Titled Tuesday Blitz July 25 Early 2023"]
[White "Viasus, Juan Diego"]
[Black "Hartikainen, Jarmo"]
[WhiteFideId "4464346"]
[BlackFideId "503134"]
[WhiteElo "1499"]
[BlackElo "2077"]
[Result "0-1"]
[Round "11"]
[TimeControl "180+2"]
[Date "2023.07.25"]
[WhiteClock "0:01:20"]
[BlackClock "0:00:20"]
[Board "162"]

1. c4 {[%clk 0:03:00]}  e5 {[%clk 0:02:59]} 2. Nc3 {[%clk 0:03:00]}  Nf6 {[%clk 0:02:59]} 3. g3 {[%clk 0:03:01]}  Be7 {[%clk 0:02:59]} 4. Bg2 {[%clk 0:03:01]}  O-O {[%clk 0:02:59]} 5. Nf3 {[%clk 0:03:01]}  Nc6 {[%clk 0:02:58]} 6. d4 {[%clk 0:03:00]}  d6 {[%clk 0:02:43]} 7. O-O {[%clk 0:02:58]}  Bg4 {[%clk 0:02:21]} 8. h3 {[%clk 0:02:56]}  Bxf3 {[%clk 0:02:18]} 9. Bxf3 {[%clk 0:02:55]}  exd4 {[%clk 0:02:08]} 10. Nb5 {[%clk 0:02:54]}  Ne5 {[%clk 0:01:53]} 11. Bg2 {[%clk 0:02:44]}  c6 {[%clk 0:01:46]} 12. Nxd4 {[%clk 0:02:37]}  Nxc4 {[%clk 0:01:45]} 13. b3 {[%clk 0:02:33]}  Nb6 {[%clk 0:01:45]} 14. Bb2 {[%clk 0:02:33]}  d5 {[%clk 0:01:41]} 15. Nf5 {[%clk 0:02:34]}  Qd7 {[%clk 0:01:24]} 16. Nxe7+ {[%clk 0:02:29]}  Qxe7 {[%clk 0:01:24]} 17. Qd4 {[%clk 0:02:23]}  Nbd7 {[%clk 0:01:12]} 18. e3 {[%clk 0:02:15]}  Rfe8 {[%clk 0:01:00]} 19. a4 {[%clk 0:02:14]}  Qe5 {[%clk 0:00:49]} 20. b4 {[%clk 0:02:07]}  Qxd4 {[%clk 0:00:49]} 21. Bxd4 {[%clk 0:02:08]}  b6 {[%clk 0:00:41]} 22. Rac1 {[%clk 0:02:08]}  Rac8 {[%clk 0:00:41]} 23. h4 {[%clk 0:01:50]}  c5 {[%clk 0:00:41]} 24. bxc5 {[%clk 0:01:50]}  bxc5 {[%clk 0:00:41]} 25. Bb2 {[%clk 0:01:49]}  Ne4 {[%clk 0:00:28]} 26. Bxe4 {[%clk 0:01:39]}  Rxe4 {[%clk 0:00:25]} 27. a5 {[%clk 0:01:39]}  Ra4 {[%clk 0:00:22]} 28. Ra1 {[%clk 0:01:39]}  Rxa1 {[%clk 0:00:21]} 29. Rxa1 {[%clk 0:01:40]}  Rb8 {[%clk 0:00:20]} 30. Ba3 {[%clk 0:01:36]}  Rb3 {[%clk 0:00:18]} 31. Kg2 {[%clk 0:01:25]}  h5 {[%clk 0:00:18]} 32. a6 {[%clk 0:01:20]}  Nb6 {[%clk 0:00:18]} 33. Bc1 {[%clk 0:01:20]}  Nc4 {[%clk 0:00:17]} 34. Kf3 {[%clk 0:01:13]}  f5 {[%clk 0:00:17]} 35. Ke2 {[%clk 0:01:14]}  d4 {[%clk 0:00:17]} 36. exd4 {[%clk 0:01:12]}  cxd4 {[%clk 0:00:18]} 37. Bg5 {[%clk 0:01:10]}  d3+ {[%clk 0:00:18]} 38. Kf1 {[%clk 0:01:08]}  Rb2 {[%clk 0:00:17]} 39. Rd1 {[%clk 0:01:07]}  d2 {[%clk 0:00:17]} 40. Ke2 {[%clk 0:01:07]}  Ra2 {[%clk 0:00:17]} 41. Kd3 {[%clk 0:01:01]}  Nb2+ {[%clk 0:00:17]} 42. Kc2 {[%clk 0:01:01]}  Nxd1+ {[%clk 0:00:17]} 43. Kxd1 {[%clk 0:01:02]}  Rxa6 {[%clk 0:00:16]} 44. Bxd2 {[%clk 0:01:03]}  Kf7 {[%clk 0:00:16]} 45. Ke2 {[%clk 0:01:04]}  Ke6 {[%clk 0:00:16]} 46. Ke3 {[%clk 0:01:04]}  Kd5 {[%clk 0:00:16]} 47. Kf4 {[%clk 0:01:05]}  g6 {[%clk 0:00:16]} 48. Kg5 {[%clk 0:01:05]}  Rc6 {[%clk 0:00:16]} 49. Bf4 {[%clk 0:01:05]}  a5 {[%clk 0:00:16]} 50. Bd2 {[%clk 0:01:04]}  a4 {[%clk 0:00:17]} 51. Bb4 {[%clk 0:01:05]}  Kc4 {[%clk 0:00:17]} 52. Ba3 {[%clk 0:01:06]}  Kb3 {[%clk 0:00:17]} 53. Bc1 {[%clk 0:01:05]}  a3 {[%clk 0:00:17]} 54. Bxa3 {[%clk 0:01:05]}  Kxa3 {[%clk 0:00:18]} 55. Kh6 {[%clk 0:01:05]}  Kb3 {[%clk 0:00:17]} 56. Kg7 {[%clk 0:01:05]}  Kc4 {[%clk 0:00:18]} 57. Kf7 {[%clk 0:01:05]}  Kd5 {[%clk 0:00:18]} 58. Kg7 {[%clk 0:01:06]}  Ke4 {[%clk 0:00:18]} 59. Kh6 {[%clk 0:01:07]}  Kf3 {[%clk 0:00:19]} 60. Kg5 {[%clk 0:01:07]}  Kxf2 {[%clk 0:00:19]} 61. Kf4 {[%clk 0:01:08]}  Rc4+ {[%clk 0:00:18]} 62. Kg5 {[%clk 0:01:09]}  Rg4+ {[%clk 0:00:18]} 63. Kf6 {[%clk 0:01:09]}  Rxg3 {[%clk 0:00:18]} 64. Kg7 {[%clk 0:01:09]}  Rg4 {[%clk 0:00:19]} 65. Kh8 {[%clk 0:01:10]}  Rxh4 {[%clk 0:00:19]} 66. Kg8 {[%clk 0:01:11]}  f4 {[%clk 0:00:19]} 67. Kh8 {[%clk 0:01:12]}  f3 {[%clk 0:00:20]} 68. Kg8 {[%clk 0:01:13]}  Kg3 {[%clk 0:00:20]} 69. Kh8 {[%clk 0:01:14]}  Kf4 {[%clk 0:00:21]} 70. Kg8 {[%clk 0:01:14]}  Kf5 {[%clk 0:00:21]} 71. Kh8 {[%clk 0:01:15]}  Kf6 {[%clk 0:00:22]} 72. Kg8 {[%clk 0:01:16]}  g5 {[%clk 0:00:22]} 73. Kh8 {[%clk 0:01:17]}  Ra4 {[%clk 0:00:20]} 74. Kg8 {[%clk 0:01:18]}  Ra7 {[%clk 0:00:20]} 75. Kh8 {[%clk 0:01:19]}  Kg6 {[%clk 0:00:19]} 76. Kg8 {[%clk 0:01:20]}  Ra8# {[%clk 0:00:20]} 0-1